bitfinex/quotes_SOLUSD_20241118
["timestamp","ask_amount","ask_price","bid_price","bid_amount"]
[1731960292916,20.68328949,236.23,236.21,0.25098]
[1731960293825,20.68328949,236.23,236.2,0.25098]
[1731960294891,20.68328949,236.25,236.2,0.25098]
[1731960295395,20.68328949,236.25,236.2,5.5932898]
[1731960295692,6.58931318,236.32,236.22,0.25098]
[1731960295693,20.68328949,236.27,236.22,0.25098]
[1731960295899,20.68328949,236.27,236.22,5.82440091]
[1731960296207,13.09371318,236.33,236.23,5.66709553]
[1731960296208,20.68328949,236.29,236.23,5.66709553]
[1731960296389,20.68328949,236.29,236.24,0.25098]
[1731960297014,6.5044,236.33,236.28,0.25098]
[1731960297015,20.68328949,236.33,236.28,0.25098]
[1731960297211,20.68328949,236.35,236.28,0.25098]
[1731960297620,20.68328949,236.35,236.3,4.48278]
[1731960297794,20.68328949,236.37,236.31,0.34465462]
[1731960297993,4.2308,236.36,236.31,0.12549]
[1731960298408,4.2308,236.36,236.29,0.12549]
[1731960298593,20.68328949,236.35,236.3,0.21916462]
[1731960298794,20.68328949,236.4,236.34,0.09367462]
[1731960299010,20.68328949,236.42,236.36,0.21916462]
[1731960299193,20.68328949,236.42,236.37,0.12549]
[1731960300827,20.68328949,236.38,236.33,0.12549]
[1731960301194,20.68328949,236.36,236.33,0.12549]
[1731960302616,20.68328949,236.34,236.25,20.68328949]
[1731960302924,20.68328949,236.34,236.24,0.09367462]
[1731960303223,20.68328949,236.28,236.19,20.68328949]
[1731960303523,20.68328949,236.28,236.18,16.304]
[1731960303826,20.68328949,236.28,236.19,20.68328949]
[1731960304614,20.68328949,236.28,236.2,0.09367462]
[1731960305311,20.68328949,236.28,236.22,0.21916462]
[1731960305512,20.68328949,236.28,236.23,0.12549]
[1731960306519,20.68328949,236.28,236.24,0.09367462]
[1731960307321,20.68328949,236.32,236.24,0.21916462]
[1731960307529,20.68328949,236.3,236.26,0.09367462]
[1731960307695,15.628,236.38,236.26,0.09367462]
[1731960307696,20.68328949,236.34,236.3,0.09367462]
[1731960308032,20.68328949,236.38,236.32,0.12549]
[1731960308406,20.68328949,236.4,236.32,0.12549]
[1731960308614,20.68328949,236.4,236.31,0.34465462]
[1731960309326,20.68328949,236.4,236.33,0.34465462]
[1731960309618,20.68328949,236.42,236.33,12.23320009]
[1731960309830,20.68328949,236.44,236.35,0.09367462]
[1731960310010,6.3333,236.49,236.39,0.25098]
[1731960310206,20.68328949,236.46,236.4,6.09845789]
[1731960310399,20.68328949,236.46,236.41,0.25098]
[1731960310801,20.68328949,236.52,236.41,0.25098]
[1731960310802,6.3333,236.55,236.43,0.25098]
[1731960311024,20.68328949,236.53,236.45,0.25098]
[1731960311235,20.68328949,236.53,236.46,12.29095696]
[1731960311542,20.68328949,236.47,236.33,20.80877949]
[1731960311704,20.68328949,236.42,236.33,20.68328949]
[1731960312024,15.6793,236.5,236.29,28.85717731]
[1731960312025,20.68328949,236.38,236.29,28.85717731]
[1731960312237,20.68328949,236.38,236.29,27.15088949]
[1731960312526,20.68328949,236.38,236.3,0.09367462]
[1731960312827,6.3333,236.47,236.3,0.09367462]
[1731960312828,20.68328949,236.42,236.33,0.09367462]
[1731960313033,20.68328949,236.42,236.3,0.09367462]
[1731960313034,20.68328949,236.4,236.3,20.77696411]
[1731960313527,20.68328949,236.33,236.24,20.68328949]
[1731960313824,20.0,236.39,236.25,0.09367462]
[1731960314126,20.68328949,236.48,236.37,20.77696411]
[1731960314307,20.68328949,236.5,236.39,20.68328949]
[1731960314507,20.68328949,236.52,236.42,0.21916462]
[1731960314704,20.68328949,236.52,236.42,0.34465462]
[1731960315313,20.68328949,236.54,236.48,0.09367462]
[1731960315513,20.68328949,236.54,236.5,0.09367462]
[1731960315728,20.68328949,236.54,236.5,5.21849321]
[1731960316304,20.68328949,236.54,236.5,5.12481859]
[1731960316522,20.68328949,236.52,236.43,0.25098]
[1731960316716,20.68328949,236.52,236.41,20.68328949]
[1731960316717,20.68328949,236.5,236.41,20.68328949]
[1731960317024,20.68328949,236.5,236.44,0.09367462]
[1731960317406,20.68328949,236.52,236.44,0.09367462]
[1731960317625,20.68328949,236.54,236.44,5.1811113]
[1731960317806,20.68328949,236.54,236.46,0.09367462]
[1731960318139,20.68328949,236.54,236.48,0.34465462]
[1731960318308,6.1711,236.6,236.5,0.34465462]
[1731960318309,20.68328949,236.57,236.5,0.34465462]
[1731960318516,20.68328949,236.57,236.52,0.21916462]
[1731960320415,20.68328949,236.57,236.52,5.11063321]
[1731960320914,20.68328949,236.57,236.52,0.21916462]
[1731960321113,6.1711,236.6,236.52,0.09367462]
[1731960321114,20.68328949,236.59,236.52,0.09367462]
[1731960321344,20.68328949,236.59,236.54,0.09367462]
[1731960321631,4.2261,236.63,236.54,0.09367462]
[1731960321632,20.68328949,236.63,236.58,0.09367462]
[1731960321837,20.68328949,236.65,236.59,0.12549]
[1731960322009,0.4703754,236.66,236.6,0.21916462]
[1731960322208,0.4703754,236.66,236.62,0.09367462]
[1731960322410,0.4703754,236.66,236.63,0.25098]
[1731960322634,0.4703754,236.66,236.64,5.41048668]
[1731960322807,0.4703754,236.66,236.65,0.25098]
[1731960323465,0.4703754,236.66,236.6,0.09367462]
[1731960323749,0.4703754,236.66,236.59,0.25098]
[1731960324048,0.4703754,236.66,236.6,0.21916462]
[1731960324351,24.90898949,236.65,236.55,0.25098]
[1731960324521,24.90898949,236.65,236.56,0.09367462]
[1731960324926,20.68328949,236.63,236.56,0.09367462]
[1731960326427,20.68328949,236.63,236.56,0.21916462]
[1731960326647,21.15366489,236.66,236.58,0.09367462]
[1731960326991,20.68328949,236.62,236.58,0.21916462]
[1731960327455,20.68328949,236.64,236.56,0.21916462]
[1731960328247,20.68328949,236.64,236.58,0.09367462]
[1731960329049,20.68328949,236.64,236.57,0.09367462]
[1731960329435,20.68328949,236.64,236.56,0.21916462]
[1731960329638,20.68328949,236.64,236.57,0.09367462]
[1731960330221,20.68328949,236.64,236.57,20.77696411]
[1731960330432,20.68328949,236.64,236.59,0.21916462]
[1731960330930,21.15366489,236.66,236.6,0.12549]
[1731960331136,0.4703754,236.66,236.61,0.21916462]
[1731960332057,0.4703754,236.66,236.6,0.34465462]
[1731960332355,0.4703754,236.66,236.64,0.09367462]
[1731960332546,0.4703754,236.66,236.65,0.12549]
[1731960332753,0.4703754,236.66,236.65,0.21916462]
[1731960333261,0.4703754,236.66,236.65,56.74718644]
[1731960333458,0.4703754,236.66,236.65,56.87267644]
[1731960334057,6.0319,236.84,236.65,56.87267644]
[1731960334058,20.68328949,236.79,236.7,0.34465462]
[1731960334361,20.68328949,236.79,236.72,0.34465462]
[1731960334544,20.68328949,236.79,236.72,5.69021352]
[1731960334860,20.68328949,236.79,236.74,0.25098]
[1731960335262,20.68328949,236.88,236.74,0.25098]
[1731960335263,20.68328949,236.83,236.75,40.68328949]
[1731960335439,20.68328949,236.86,236.79,0.12549]
[1731960335639,20.68328949,236.88,236.8,5.88936001]
[1731960335861,0.4703754,236.9,236.82,0.12549]
[1731960336166,0.4703754,236.9,236.84,20.25098]
[1731960337053,0.4703754,236.9,236.84,0.12549]
[1731960337054,20.68328949,236.88,236.84,0.12549]
[1731960337258,0.4703754,236.9,236.82,20.93426949]
[1731960337934,20.68328949,236.85,236.81,0.12549]
[1731960338360,20.68328949,236.85,236.82,0.09367462]
[1731960339470,24.90468949,236.89,236.84,0.09367462]
[1731960339841,20.68328949,236.87,236.84,0.09367462]
[1731960340258,20.68328949,236.87,236.82,0.21916462]
[1731960340451,20.68328949,236.87,236.83,0.12549]
[1731960340767,24.90498949,236.87,236.83,0.09367462]
[1731960341359,20.0,236.84,236.74,20.68328949]
[1731960341545,20.68328949,236.81,236.71,20.68328949]
[1731960341746,20.68328949,236.79,236.69,20.68328949]
[1731960342341,24.90648949,236.79,236.69,20.68328949]
[1731960342965,24.90648949,236.79,236.7,20.0]
[1731960343173,24.90648949,236.79,236.71,0.34465462]
[1731960343869,20.68328949,236.79,236.71,21.02794411]
[1731960344767,24.90648949,236.79,236.71,21.02794411]
[1731960344941,20.68328949,236.77,236.71,0.34465462]
[1731960345138,20.68328949,236.77,236.71,0.25098]
[1731960345766,20.68328949,236.77,236.72,0.09367462]
[1731960346180,24.90678949,236.77,236.71,0.25098]
[1731960346348,20.68328949,236.72,236.63,20.68328949]
[1731960346543,20.68328949,236.7,236.61,20.68328949]
[1731960346750,20.68328949,236.68,236.59,20.68328949]
[1731960349458,20.68328949,236.66,236.57,20.68328949]
[1731960349651,20.68328949,236.66,236.58,0.09367462]
[1731960349950,20.68328949,236.64,236.58,0.09367462]
[1731960350483,20.68328949,236.64,236.56,0.09367462]
[1731960350767,20.68328949,236.64,236.56,0.34465462]
[1731960351675,4.2256,236.65,236.58,0.21916462]
[1731960352276,20.68328949,236.66,236.58,0.21916462]
[1731960352447,20.68328949,236.6,236.49,10.42864874]
[1731960352650,20.68328949,236.6,236.5,20.68328949]
[1731960352961,20.68328949,236.6,236.51,0.09367462]
[1731960353161,20.68328949,236.6,236.51,4.21519142]
[1731960353375,20.68328949,236.6,236.51,0.09367462]
[1731960353895,20.68328949,236.58,236.51,0.34465462]
[1731960354665,20.68328949,236.58,236.5,0.12549]
[1731960354981,20.68328949,236.56,236.51,0.09367462]
[1731960355187,20.68328949,236.54,236.47,4.1215168]
[1731960355387,20.68328949,236.52,236.45,4.1215168]
[1731960355588,20.68328949,236.52,236.43,4.1215168]
[1731960355795,24.91188949,236.48,236.41,4.1215168]
[1731960355975,24.91188949,236.48,236.38,24.80480629]
[1731960356176,24.91188949,236.48,236.38,20.68328949]
[1731960356371,24.91188949,236.48,236.41,0.09367462]
[1731960356592,20.68328949,236.48,236.41,0.09367462]
[1731960357100,20.68328949,236.48,236.39,0.34465462]
[1731960357888,24.91208949,236.48,236.39,0.34465462]
[1731960358083,20.68328949,236.46,236.39,0.34465462]
[1731960358420,24.91208949,236.48,236.39,0.34465462]
[1731960358901,20.0,236.49,236.41,0.21916462]
[1731960359484,20.0,236.49,236.43,0.09367462]
[1731960359698,20.68328949,236.52,236.45,0.21916462]
[1731960360002,24.91128949,236.52,236.45,0.21916462]
[1731960360201,20.68328949,236.48,236.41,0.12549]
[1731960360403,20.68328949,236.48,236.4,0.09367462]
[1731960361208,20.68328949,236.48,236.42,0.09367462]
[1731960361674,20.68328949,236.5,236.42,0.09367462]
[1731960361875,20.68328949,236.5,236.42,20.77696411]
[1731960362080,20.68328949,236.5,236.44,0.09367462]
[1731960362805,20.68328949,236.52,236.44,0.09367462]
[1731960364784,20.68328949,236.54,236.46,0.21916462]
[1731960366408,24.91088949,236.54,236.46,0.21916462]
[1731960367010,24.91048949,236.56,236.46,20.90245411]
[1731960367613,20.68328949,236.58,236.5,20.68328949]
[1731960367788,24.90998949,236.6,236.52,0.09367462]
[1731960368403,24.90998949,236.6,236.53,0.12549]
[1731960368585,20.68328949,236.62,236.54,0.21916462]
[1731960368791,20.68328949,236.66,236.58,0.09367462]
[1731960369001,20.68328949,236.66,236.6,0.09367462]
[1731960369715,24.90878949,236.66,236.6,0.09367462]
[1731960370507,20.68328949,236.63,236.57,0.12549]
[1731960370706,20.68328949,236.63,236.56,0.25098]
[1731960370890,4.2255,236.66,236.55,20.0]
[1731960370891,20.68328949,236.61,236.55,20.0]
[1731960371088,20.68328949,236.59,236.51,20.0]
[1731960371296,20.68328949,236.59,236.52,0.09367462]
[1731960371801,4.2255,236.66,236.52,20.77696411]
[1731960371802,20.68328949,236.61,236.52,20.77696411]
[1731960372106,24.90958949,236.61,236.52,20.77696411]
[1731960372308,24.90958949,236.61,236.54,0.09367462]
[1731960373994,20.68328949,236.62,236.54,0.21916462]
[1731960374299,20.68328949,236.64,236.58,0.09367462]
[1731960375183,20.68328949,236.68,236.6,0.09367462]
[1731960375581,20.68328949,236.68,236.61,0.12549]
[1731960375992,24.90838949,236.68,236.61,0.12549]
[1731960376614,24.90838949,236.68,236.6,0.09367462]
[1731960376916,20.68328949,236.66,236.6,0.09367462]
[1731960377327,20.68328949,236.66,236.57,0.12549]
[1731960377707,20.68328949,236.66,236.58,0.09367462]
[1731960377900,24.90838949,236.68,236.6,0.09367462]
[1731960378228,24.90838949,236.68,236.61,0.12549]
[1731960378403,24.90838949,236.68,236.6,0.09367462]
[1731960379019,4.2251,236.68,236.62,0.09367462]
[1731960379570,24.2249,236.69,236.62,0.09367462]
[1731960380798,20.68328949,236.68,236.58,20.68328949]
[1731960380998,20.68328949,236.68,236.59,0.12549]
[1731960381203,20.68328949,236.68,236.6,0.09367462]
[1731960381427,20.68328949,236.62,236.54,20.68328949]
[1731960381600,20.68328949,236.62,236.52,20.68328949]
[1731960381800,20.68328949,236.62,236.53,0.09367462]
[1731960382115,4.2263,236.61,236.53,0.09367462]
[1731960382811,2.19767054,236.77,236.63,16.40867462]
[1731960383012,0.5,236.86,236.63,16.40867462]
[1731960383013,4.6915754,236.9,236.77,0.21916462]
[1731960383332,20.68328949,236.88,236.81,0.21916462]
[1731960383505,20.68328949,236.86,236.81,0.21916462]
[1731960383844,20.68328949,236.86,236.79,0.21916462]
[1731960384130,24.90518949,236.86,236.79,0.21916462]
[1731960384303,20.68328949,236.81,236.73,0.25098]
[1731960384499,20.68328949,236.79,236.72,0.12549]
[1731960384701,20.68328949,236.79,236.71,0.25098]
[1731960385406,20.68328949,236.75,236.65,20.68328949]
[1731960385634,20.68328949,236.73,236.65,20.68328949]
[1731960385929,20.68328949,236.73,236.63,36.49828949]
[1731960386132,20.68328949,236.73,236.64,0.09367462]
[1731960386828,20.68328949,236.71,236.64,0.09367462]
[1731960387132,6.2763,236.82,236.63,36.49828949]
[1731960387133,20.68328949,236.75,236.66,0.09367462]
[1731960387442,20.68328949,236.77,236.68,0.09367462]
[1731960388005,20.68328949,236.77,236.68,0.34465462]
[1731960390433,0.4703754,236.9,236.87,0.21916462]
[1731960390737,0.4703754,236.9,236.89,21.02794411]
[1731960391034,0.4703754,236.9,236.89,27.94841659]
[1731960391840,0.4703754,236.9,236.89,33.37571754]
[1731960392340,0.4703754,236.9,236.89,26.45524506]
[1731960392634,0.4703754,236.9,236.89,33.21330075]
[1731960392815,0.4703754,236.9,236.89,38.47186266]
[1731960393217,0.4703754,236.9,236.89,27.7859998]
[1731960394339,0.4703754,236.9,236.89,0.34465462]
[1731960394578,0.4703754,236.9,236.82,20.0]
[1731960394749,0.4703754,236.9,236.83,20.68328949]
[1731960395117,0.4703754,236.9,236.84,0.09367462]
[1731960395428,20.68328949,236.89,236.81,20.68328949]
[1731960395736,20.68328949,236.89,236.82,0.09367462]
[1731960396339,20.68328949,236.89,236.81,20.68328949]
[1731960396636,4.6916754,236.9,236.82,0.34465462]
[1731960396941,0.4703754,236.9,236.84,0.34465462]
[1731960397942,0.4703754,236.9,236.84,0.21916462]
[1731960398235,20.68328949,236.89,236.83,0.09367462]
[1731960398453,20.68328949,236.85,236.74,6.30778103]
[1731960398753,24.90538949,236.85,236.75,0.09367462]
[1731960399125,20.68328949,236.83,236.75,0.09367462]
[1731960399328,20.68328949,236.85,236.77,0.09367462]
[1731960399849,20.68328949,236.85,236.78,0.25098]
[1731960400032,20.68328949,236.85,236.78,0.12549]
[1731960400354,20.68328949,236.85,236.79,0.09367462]
[1731960400931,24.2219,236.86,236.79,0.09367462]
[1731960401252,20.68328949,236.85,236.79,0.09367462]
[1731960401943,24.90548949,236.85,236.79,0.09367462]
[1731960402656,20.68328949,236.81,236.73,0.25098]
[1731960402844,20.68328949,236.81,236.74,0.21916462]
[1731960403151,20.68328949,236.79,236.73,0.12549]
[1731960403355,20.68328949,236.79,236.74,0.09367462]
[1731960404449,20.68328949,236.79,236.74,0.21916462]
[1731960405953,20.68328949,236.75,236.66,20.68328949]
[1731960406143,20.68328949,236.75,236.67,0.09367462]
[1731960406560,20.68328949,236.75,236.61,6.4186]
[1731960406561,20.68328949,236.73,236.64,20.68328949]
[1731960406854,20.68328949,236.71,236.62,20.68328949]
[1731960407055,20.68328949,236.69,236.63,0.09367462]
[1731960407935,20.68328949,236.69,236.65,0.09367462]
[1731960408135,20.68328949,236.69,236.65,0.12549]
[1731960408546,20.68328949,236.77,236.69,0.34465462]
[1731960408752,20.68328949,236.77,236.71,0.09367462]
[1731960409046,20.68328949,236.77,236.71,0.34465462]
[1731960410953,4.2234,236.78,236.71,0.34465462]
[1731960410954,20.68328949,236.81,236.73,0.25098]
[1731960411136,20.68328949,236.79,236.73,0.25098]
[1731960411564,20.68328949,236.79,236.72,0.25098]
[1731960411936,20.68328949,236.81,236.72,20.93426949]
[1731960412346,20.68328949,236.81,236.74,20.68328949]
[1731960412664,20.68328949,236.81,236.75,0.25098]
[1731960412842,24.90578949,236.83,236.75,0.25098]
[1731960413457,20.68328949,236.83,236.75,0.25098]
[1731960413861,20.68328949,236.81,236.75,0.12549]
[1731960414160,24.90608949,236.81,236.73,0.25098]
[1731960414855,20.68328949,236.79,236.73,0.12549]
[1731960415058,20.68328949,236.79,236.72,0.12549]
[1731960416869,20.68328949,236.77,236.66,20.68328949]
[1731960417046,20.68328949,236.74,236.66,20.68328949]
[1731960417441,20.68328949,236.76,236.69,0.09367462]
[1731960417857,20.68328949,236.74,236.66,20.68328949]
[1731960418063,24.90738949,236.74,236.65,0.09367462]
[1731960418567,20.68328949,236.72,236.65,0.09367462]
[1731960419045,20.68328949,236.72,236.67,0.09367462]
[1731960419361,20.68328949,236.72,236.67,0.21916462]
[1731960420867,24.90768949,236.72,236.65,0.12549]
[1731960421073,24.90768949,236.72,236.64,0.09367462]
[1731960422070,20.68328949,236.76,236.66,20.80877949]
[1731960422250,20.1918,236.87,236.66,20.80877949]
[1731960422251,20.68328949,236.74,236.66,20.80877949]
[1731960422776,20.68328949,236.78,236.69,0.21916462]
[1731960423255,20.68328949,236.78,236.71,0.21916462]
[1731960423764,20.68328949,236.8,236.73,0.09367462]
[1731960423968,20.0,236.79,236.73,0.21916462]
[1731960424363,24.2231,236.79,236.73,0.21916462]
[1731960424759,20.68328949,236.78,236.73,0.21916462]
[1731960424956,20.68328949,236.74,236.61,0.25098]
[1731960425274,4.2231,236.79,236.66,0.09367462]
[1731960425275,20.68328949,236.72,236.66,0.09367462]
[1731960425750,20.68328949,236.7,236.62,20.68328949]
[1731960425950,20.68328949,236.72,236.64,20.68328949]
[1731960426150,6.3505,236.78,236.65,0.09367462]
[1731960426372,20.68328949,236.72,236.65,0.09367462]
[1731960426856,20.68328949,236.7,236.65,0.09367462]
[1731960427458,24.90808949,236.7,236.61,0.09367462]
[1731960427658,24.90808949,236.7,236.61,0.21916462]
[1731960427873,24.90808949,236.7,236.63,0.09367462]
[1731960428171,24.90808949,236.7,236.63,0.21916462]
[1731960428752,24.90808949,236.7,236.6,20.68328949]
[1731960428962,20.68328949,236.69,236.6,20.68328949]
[1731960429164,20.68328949,236.69,236.61,0.09367462]
[1731960429866,24.90828949,236.69,236.61,0.21916462]
[1731960430674,24.90828949,236.69,236.6,20.68328949]
[1731960430675,20.68328949,236.63,236.53,4.231]
[1731960430859,14.7873,236.69,236.51,24.91428949]
[1731960430860,20.68328949,236.61,236.51,24.91428949]
[1731960431059,20.0,236.64,236.57,0.09367462]
[1731960432181,20.0,236.64,236.57,0.21916462]
[1731960432479,10.5623,236.69,236.49,4.231]
[1731960432480,20.68328949,236.67,236.61,0.21916462]
[1731960432667,20.68328949,236.71,236.63,0.21916462]
[1731960433471,24.90788949,236.71,236.63,0.21916462]
[1731960433883,20.0,236.7,236.63,0.21916462]
[1731960434458,20.0,236.7,236.63,0.09367462]
[1731960434669,20.68328949,236.65,236.56,20.68328949]
[1731960434880,20.68328949,236.65,236.58,0.09367462]
[1731960435259,20.68328949,236.65,236.57,0.12549]
[1731960435472,20.68328949,236.65,236.58,20.68328949]
[1731960435666,24.90898949,236.65,236.59,0.09367462]
[1731960437895,20.68328949,236.63,236.54,20.68328949]
[1731960438187,20.68328949,236.61,236.52,20.68328949]
[1731960438489,20.68328949,236.55,236.41,22.8199]
[1731960438661,20.68328949,236.55,236.45,20.68328949]
[1731960439167,20.68328949,236.55,236.45,10.40163449]
[1731960439384,20.68328949,236.53,236.45,10.40163449]
[1731960439579,20.68328949,236.51,236.41,20.68328949]
[1731960439768,0.5,236.57,236.41,20.68328949]
[1731960439769,20.68328949,236.48,236.41,20.68328949]
[1731960440361,24.91198949,236.48,236.39,20.68328949]
[1731960440565,20.68328949,236.46,236.37,20.68328949]
[1731960441189,20.68328949,236.46,236.38,0.09367462]
[1731960441379,20.68328949,236.5,236.42,0.09367462]
[1731960441687,20.68328949,236.56,236.49,20.68328949]
[1731960441863,20.68328949,236.6,236.52,20.68328949]
[1731960442286,20.68328949,236.53,236.42,20.68328949]
[1731960442588,20.68328949,236.47,236.41,0.09367462]
[1731960442969,20.68328949,236.49,236.41,0.09367462]
[1731960443694,20.68328949,236.51,236.43,0.21916462]
[1731960443877,24.91108949,236.53,236.45,0.21916462]
[1731960444061,20.68328949,236.53,236.47,0.21916462]
[1731960445096,24.91118949,236.53,236.47,0.21916462]
[1731960445385,20.68328949,236.51,236.43,0.25098]
[1731960446084,20.68328949,236.51,236.44,0.09367462]
[1731960446293,20.68328949,236.51,236.43,0.25098]
[1731960446294,20.68328949,236.55,236.47,20.21916462]
[1731960446481,4.226,236.63,236.47,20.21916462]
[1731960446482,20.68328949,236.59,236.51,0.09367462]
[1731960446785,4.226,236.63,236.51,0.09367462]
[1731960446786,20.68328949,236.57,236.51,0.09367462]
[1731960446986,20.68328949,236.57,236.49,0.21916462]
[1731960447281,20.68328949,236.57,236.37,0.5]
[1731960447282,20.68328949,236.53,236.45,0.12549]
[1731960447490,20.68328949,236.53,236.46,0.09367462]
[1731960447791,20.68328949,236.51,236.46,0.09367462]
[1731960447964,4.2283,236.5,236.42,20.68328949]
[1731960448589,4.2283,236.5,236.43,0.09367462]
[1731960448787,20.68328949,236.49,236.43,0.09367462]
[1731960448995,20.68328949,236.53,236.45,0.09367462]
[1731960449287,20.0,236.52,236.45,0.09367462]
[1731960449892,4.2279,236.52,236.45,0.21916462]
[1731960450467,4.2276,236.54,236.47,0.21916462]
[1731960452273,20.68328949,236.53,236.42,20.68328949]
[1731960452588,20.68328949,236.53,236.44,0.09367462]
[1731960452973,20.68328949,236.53,236.45,0.12549]
[1731960453387,4.2276,236.54,236.46,20.77696411]
[1731960453596,4.2276,236.54,236.47,0.12549]
[1731960453970,20.68328949,236.53,236.47,0.12549]
[1731960454189,20.68328949,236.53,236.46,0.09367462]
[1731960454369,12.87500733,236.53,236.46,0.09367462]
[1731960455588,17.10290733,236.53,236.46,0.09367462]
[1731960456295,12.87500733,236.5,236.41,12.87500733]
[1731960456471,12.87500733,236.48,236.35,21.6444]
[1731960456682,12.87500733,236.48,236.38,0.09367462]
[1731960456983,12.87500733,236.48,236.37,12.87500733]
[1731960457189,12.87500733,236.46,236.37,12.87500733]
[1731960457495,4.2292,236.45,236.37,12.87500733]
[1731960458393,4.2292,236.45,236.38,0.09367462]
[1731960458592,12.87500733,236.44,236.38,0.09367462]
[1731960458802,12.87500733,236.44,236.35,12.87500733]
[1731960459100,12.87500733,236.44,236.37,12.87500733]
[1731960459394,12.87500733,236.46,236.38,0.21916462]
[1731960459894,12.87500733,236.46,236.38,0.09367462]
[1731960460097,12.87500733,236.44,236.35,12.87500733]
[1731960460398,12.87500733,236.42,236.34,0.25098]
[1731960460585,12.87500733,236.42,236.35,0.09367462]
[1731960460988,12.87500733,236.44,236.35,13.09417195]
[1731960461599,4.2295,236.43,236.35,13.09417195]
[1731960464579,12.87500733,236.46,236.39,0.09367462]
[1731960464779,12.87500733,236.48,236.41,0.21916462]
[1731960464975,12.87500733,236.46,236.41,0.21916462]
[1731960465279,4.2283,236.5,236.41,0.09367462]
[1731960465280,12.87500733,236.44,236.41,0.09367462]
[1731960465496,12.87500733,236.44,236.36,0.25098]
[1731960465704,12.87500733,236.44,236.35,12.87500733]
[1731960466404,12.87500733,236.44,236.36,0.09367462]
[1731960466607,4.2295,236.43,236.36,0.09367462]
[1731960466786,12.87500733,236.44,236.36,0.09367462]
[1731960466986,4.2294,236.44,236.38,0.21916462]
[1731960468306,17.10440733,236.44,236.38,0.21916462]
[1731960468495,17.10440733,236.44,236.36,0.34465462]
[1731960469403,10.5708,236.5,236.36,0.34465462]
[1731960469404,12.87500733,236.46,236.38,0.21916462]
[1731960470309,12.87500733,236.48,236.4,0.21916462]
[1731960471395,12.87500733,236.48,236.42,0.21916462]
[1731960471396,17.10380733,236.48,236.42,0.21916462]
[1731960472119,15.624,236.57,236.44,0.21916462]
[1731960472282,12.87500733,236.55,236.48,0.21916462]
[1731960472482,12.87500733,236.57,236.5,0.09367462]
[1731960472689,12.87500733,236.57,236.51,0.12549]
[1731960473006,12.87500733,236.57,236.52,0.21916462]
[1731960473408,29.94380733,236.64,236.52,0.21916462]
[1731960473409,12.87500733,236.55,236.52,0.09367462]
[1731960473610,12.87500733,236.55,236.47,0.25098]
[1731960473814,12.87500733,236.55,236.48,0.09367462]
[1731960474939,4.2272,236.56,236.48,0.09367462]
[1731960476228,4.2272,236.56,236.47,13.12598733]
[1731960476229,12.87500733,236.55,236.5,0.09367462]
[1731960476437,4.2271,236.57,236.43,12.87500733]
[1731960476438,12.87500733,236.53,236.43,12.87500733]
[1731960477036,12.87500733,236.53,236.45,12.87500733]
[1731960477332,12.87500733,236.53,236.46,0.09367462]
[1731960477837,17.10290733,236.53,236.46,0.21916462]
[1731960478213,17.10250733,236.55,236.48,0.21916462]
[1731960478829,12.87500733,236.53,236.48,0.21916462]
[1731960479836,17.10280733,236.53,236.48,0.21916462]
[1731960480013,17.10250733,236.55,236.48,0.21916462]
[1731960481814,12.87500733,236.53,236.46,0.12549]
[1731960482126,12.87500733,236.53,236.43,4.14849]
[1731960482127,12.87500733,236.49,236.43,4.14849]
[1731960482638,12.87500733,236.49,236.42,0.09367462]
[1731960482939,12.87500733,236.49,236.41,12.87500733]
[1731960483149,17.10360733,236.49,236.41,12.87500733]
[1731960483314,17.10360733,236.49,236.42,0.34465462]
[1731960484845,17.10360733,236.49,236.42,4.57435462]
[1731960485215,12.87500733,236.47,236.36,4.14849]
[1731960485525,12.87500733,236.41,236.35,4.16217101]
[1731960485729,12.87500733,236.39,236.35,4.16217101]
[1731960486035,12.87500733,236.39,236.31,0.09367462]
[1731960486236,12.87500733,236.37,236.31,0.09367462]
[1731960486915,12.87500733,236.37,236.31,0.21916462]
[1731960487422,4.2304,236.38,236.33,0.09367462]
[1731960487630,12.87500733,236.41,236.35,0.09367462]
[1731960488842,12.87500733,236.39,236.31,0.12549]
[1731960489142,12.87500733,236.39,236.31,0.25098]
[1731960489344,12.87500733,236.39,236.32,0.09367462]
[1731960490441,4.2304,236.38,236.32,0.09367462]
[1731960491125,4.2304,236.38,236.3,12.87500733]
[1731960491547,12.87500733,236.37,236.29,0.09367462]
[1731960492225,12.87500733,236.37,236.29,0.21916462]
[1731960492544,4.2308,236.36,236.29,0.21916462]
[1731960493041,4.2305,236.38,236.32,12.87500733]
[1731960493233,4.2292,236.45,236.35,0.12549]
[1731960493441,20.0,236.42,236.36,0.09367462]
[1731960493645,12.87500733,236.41,236.36,0.09367462]
[1731960494539,4.2301,236.4,236.36,0.09367462]
[1731960495740,12.87500733,236.39,236.3,4.35729]
[1731960495951,12.87500733,236.39,236.31,0.12549]
[1731960496328,12.87500733,236.39,236.32,0.09367462]